[Event "FIDE WSTC Open 65 2025"]
[Site "Prague"]
[Date "2025.02.17"]
[Round "1.9"]
[White "Kozak, Milos"]
[Black "Haik, Aldo"]
[Result "0-1"]
[Annotator "ChessBase"]
[ECO "E60"]
[WhiteElo "2047"]
[BlackElo "2377"]
[PlyCount "66"]
[EventDate "2025.02.17"]
[EventType "team-tourn"]
[EventCountry "CZE"]
[SourceTitle "playchess.com"]
[Source "ChessBase"]
[SourceQuality "1"]
[TimeControl "40/5400+30:1800+30"]

1. d4 {[%emt 0:00:03]} Nf6 {[%emt 0:00:13]} 2. c4 {[%emt 0:00:05]} g6 {[%emt 0:00:20]} 3. g3 {[%emt 0:00:30]} Bg7 {[%emt 0:00:32]} 4. Bg2 {[%emt 0:00:06]} c5 {[%emt 0:00:25]} 5. dxc5 {[%emt 0:03:11]} Qa5+ {[%emt 0:02:09]} 6. Nc3 {[%emt 0:02:37]} Qxc5 {[%emt 0:01:52]} 7. Bd2 {[%emt 0:09:07]} O-O {[%emt 0:06:21]} 8. Rc1 {[%emt 0:03:49]} d6 {[%emt 0:08:49]} 9. b3 {[%emt 0:01:37]} Nc6 {[%emt 0:04:50]} 10. Nh3 {[%emt 0:02:49]} Bxh3 {[%emt 0:14:01]} 11. Bxh3 {[%emt 0:01:00]} d5 {[%emt 0:00:27]} 12. cxd5 {[%emt 0:25:55]} Nxd5 {[%emt 0:00:09]} 13. Na4 {[%emt 0:03:11]} Qa3 {[%emt 0:05:25]} 14. Nc5 {[%emt 0:04:48]} Bb2 {[%emt 0:03:37]} 15. Nxb7 {[%emt 0:06:04]} Bxc1 {[%emt 0:00:46]} 16. Qxc1 {[%emt 0:00:33]} Qxc1+ {[%emt 0:00:37]} 17. Bxc1 {[%emt 0:00:03]} Rab8 {[%emt 0:06:41]} 18. Nc5 {[%emt 0:03:42]} Rb5 {[%emt 0:00:15]} 19. Nd3 {[%emt 0:00:55]} Ncb4 {[%emt 0:00:17]} 20. Nxb4 {[%emt 0:00:52]} Nxb4 {[%emt 0:00:14]} 21. a4 {[%emt 0:03:04]} Nc2+ {[%emt 0:09:11]} 22. Kd1 {[%emt 0:03:59]} Rc5 {[%emt 0:00:13]} 23. e3 {[%emt 0:00:31]} Rd8+ {[%emt 0:00:39]} 24. Ke2 {[%emt 0:00:11]} Nb4 {[%emt 0:08:33]} 25. Ba3 {[%emt 0:00:44]} Rc2+ {[%emt 0:00:50]} 26. Kf3 {[%emt 0:00:08]} Nc6 {[%emt 0:01:23]} 27. Bg2 {[%emt 0:03:36]} Rd3 {[%emt 0:01:25]} 28. Rb1 {[%emt 0:00:25]} Nd4+ {[%emt 0:01:29]} 29. Ke4 {[%emt 0:00:57]} Rxb3 {[%emt 0:00:20]} 30. Rxb3 {[%emt 0:01:00]} Nxb3 {[%emt 0:00:07]} 31. Bxe7 {[%emt 0:02:46]} Rxf2 {[%emt 0:01:17]} 32. Bh3 {[%emt 0:00:48]} f5+ {[%emt 0:00:41]} 33. Ke5 {[%emt 0:00:31]} Nd2 {[%emt 0:00:55]} 0-1

[Event "FIDE WSTC Open 65 2025"]
[Site "Prague"]
[Date "2025.02.17"]
[Round "1.10"]
[White "Sharif, Mehrshad"]
[Black "Chaloupka, Vladimir"]
[Result "1-0"]
[Annotator "ChessBase"]
[ECO "E09"]
[WhiteElo "2318"]
[BlackElo "2064"]
[PlyCount "79"]
[EventDate "2025.02.17"]
[EventType "team-tourn"]
[EventCountry "CZE"]
[SourceTitle "playchess.com"]
[Source "ChessBase"]
[SourceQuality "1"]
[TimeControl "40/5400+30:1800+30"]

1. Nf3 {[%emt 0:00:09]} Nf6 {[%emt 0:00:24]} 2. g3 {[%emt 0:00:17]} d5 {[%emt 0:00:50]} 3. Bg2 {[%emt 0:00:12]} e6 {[%emt 0:01:15]} 4. O-O {[%emt 0:00:33]} Be7 {[%emt 0:00:20]} 5. c4 {[%emt 0:00:19]} c6 {[%emt 0:00:37]} 6. b3 {[%emt 0:01:34]} O-O {[%emt 0:01:15]} 7. Bb2 {[%emt 0:00:37]} Nbd7 {[%emt 0:04:39]} 8. d4 {[%emt 0:04:30]} Re8 {[%emt 0:03:50]} 9. Nbd2 {[%emt 0:01:43]} b6 {[%emt 0:01:50]} 10. Qc2 {[%emt 0:02:02]} Bb7 {[%emt 0:01:02]} 11. e4 {[%emt 0:00:58]} dxe4 {[%emt 0:02:06]} 12. Nxe4 {[%emt 0:02:24]} Nxe4 {[%emt 0:02:24]} 13. Qxe4 {[%emt 0:00:26]} Nf6 {[%emt 0:01:18]} 14. Qc2 {[%emt 0:12:02]} Qc7 {[%emt 0:07:51]} 15. c5 {[%emt 0:01:03]} Nd5 {[%emt 0:05:51]} 16. a3 {[%emt 0:01:17]} Rac8 {[%emt 0:03:10]} 17. Rfe1 {[%emt 0:01:24]} Bf6 {[%emt 0:03:19]} 18. Ne5 {[%emt 0:02:01]} b5 {[%emt 0:04:35]} 19. h4 {[%emt 0:01:54]} Qe7 {[%emt 0:06:15]} 20. Be4 {[%emt 0:02:13]} h6 {[%emt 0:15:37]} 21. Rad1 {[%emt 0:05:38]} Rcd8 {[%emt 0:01:42]} 22. b4 {[%emt 0:00:31]} Qc7 {[%emt 0:02:00]} 23. Qb3 {[%emt 0:00:47]} a5 {[%emt 0:01:32]} 24. Bc1 {[%emt 0:04:02]} axb4 {[%emt 0:05:32]} 25. axb4 {[%emt 0:00:08]} Ra8 {[%emt 0:03:43]} 26. Ng4 {[%emt 0:04:28]} h5 {[%emt 0:02:20]} 27. Nxf6+ {[%emt 0:01:32]} Nxf6 {[%emt 0:00:08]} 28. Bf4 {[%emt 0:00:39]} Qd7 {[%emt 0:00:57]} 29. Bd6 {[%emt 0:08:34]} Ra4 {[%emt 0:00:39]} 30. Bf3 {[%emt 0:03:57]} Rea8 {[%emt 0:01:03]} 31. Re3 {[%emt 0:01:49]} Bc8 {[%emt 0:05:39]} 32. Qb1 {[%emt 0:16:31]} Nd5 {[%emt 0:05:21]} 33. Rb3 {[%emt 0:01:32]} Nf6 {[%emt 0:01:28]} 34. Qc1 {[%emt 0:03:06]} Nd5 {[%emt 0:01:02]} 35. Qg5 {[%emt 0:01:03]} Ra1 {[%emt 0:03:08]} 36. Rbb1 {[%emt 0:06:04]} R1a3 {[%emt 0:01:28]} 37. Bxh5 {[%emt 0:01:44]} f6 {[%emt 0:00:21]} 38. Qd2 {[%emt 0:02:29]} Nc3 {[%emt 0:00:15]} 39. Bg6 {[%emt 0:00:13]} Nxd1 {[%emt 0:00:16]} 40. Qxd1 {[%emt 0:00:08]} 1-0

[Event "FIDE WSTC Open 65 2025"]
[Site "Prague"]
[Date "2025.02.17"]
[Round "1.11"]
[White "Benes, Petr"]
[Black "Roos, Louis"]
[Result "0-1"]
[Annotator "ChessBase"]
[ECO "D02"]
[WhiteElo "2069"]
[BlackElo "2312"]
[PlyCount "82"]
[EventDate "2025.02.17"]
[EventType "team-tourn"]
[EventCountry "CZE"]
[SourceTitle "playchess.com"]
[Source "ChessBase"]
[SourceQuality "1"]
[TimeControl "40/5400+30:1800+30"]

1. Nf3 {[%emt 0:00:15]} d5 {[%emt 0:01:30]} 2. g3 {[%emt 0:00:29]} Nd7 {[%emt 0:01:06]} 3. d4 {[%emt 0:05:13]} Nb6 {[%emt 0:00:08]} 4. Nbd2 {[%emt 0:02:57]} c6 {[%emt 0:10:57]} 5. Bg2 {[%emt 0:03:35]} Nf6 {[%emt 0:06:03]} 6. O-O {[%emt 0:01:41]} Bf5 {[%emt 0:03:32]} 7. Nh4 {[%emt 0:03:12]} Bg4 {[%emt 0:03:44]} 8. h3 {[%emt 0:01:26]} Bh5 {[%emt 0:05:45]} 9. Ndf3 {[%emt 0:12:22]} e6 {[%emt 0:04:34]} 10. Ne5 {[%emt 0:05:51]} Ne4 {[%emt 0:06:05]} 11. Qe1 {[%emt 0:08:40]} f6 {[%emt 0:06:13]} 12. Nd3 {[%emt 0:00:20]} g5 {[%emt 0:00:50]} 13. Nf3 {[%emt 0:00:25]} Bd6 {[%emt 0:04:56]} 14. Bd2 {[%emt 0:04:03]} Bg6 {[%emt 0:10:37]} 15. Bb4 {[%emt 0:02:03]} Bxb4 {[%emt 0:01:26]} 16. Qxb4 {[%emt 0:01:26]} a5 {[%emt 0:04:43]} 17. Qe1 {[%emt 0:01:04]} O-O {[%emt 0:11:10]} 18. Nd2 {[%emt 0:09:06]} Nxd2 {[%emt 0:01:02]} 19. Qxd2 {[%emt 0:00:05]} Nc4 {[%emt 0:01:46]} 20. Qc1 {[%emt 0:04:50]} Nd6 {[%emt 0:05:32]} 21. g4 {[%emt 0:11:21]} Qe7 {[%emt 0:00:53]} 22. b3 {[%emt 0:03:02]} e5 {[%emt 0:01:23]} 23. Qe3 {[%emt 0:03:22]} Rae8 {[%emt 0:03:17]} 24. Rae1 {[%emt 0:00:26]} e4 {[%emt 0:00:41]} 25. Nc5 {[%emt 0:04:44]} f5 {[%emt 0:00:20]} 26. Qc3 {[%emt 0:03:15]} Ra8 {[%emt 0:01:55]} 27. e3 {[%emt 0:03:03]} fxg4 {[%emt 0:00:20]} 28. hxg4 {[%emt 0:00:01]} h5 {[%emt 0:00:22]} 29. f3 {[%emt 0:01:53]} exf3 {[%emt 0:02:00]} 30. Bxf3 {[%emt 0:00:17]} h4 {[%emt 0:00:13]} 31. Bg2 {[%emt 0:00:43]} Be4 {[%emt 0:00:32]} 32. Rxf8+ {[%emt 0:00:50]} Rxf8 {[%emt 0:00:01]} 33. Qd2 {[%emt 0:01:26]} b6 {[%emt 0:00:19]} 34. Nd3 {[%emt 0:00:53]} Bxg2 {[%emt 0:01:07]} 35. Qxg2 {[%emt 0:00:07]} Qe4 {[%emt 0:00:25]} 36. Ne5 {[%emt 0:00:34]} c5 {[%emt 0:00:34]} 37. Nd7 {[%emt 0:01:17]} Rf3 {[%emt 0:00:19]} 38. Kh2 {[%emt 0:00:45]} h3 {[%emt 0:00:49]} 39. Qg1 {[%emt 0:00:21]} cxd4 {[%emt 0:00:16]} 40. exd4 {[%emt 0:00:48]} Qf4+ {[%emt 0:00:11]} 41. Kh1 {[%emt 0:30:16]} Ne4 {[%emt 0:30:12]} 0-1

[Event "FIDE WSTC Open 65 2025"]
[Site "Prague"]
[Date "2025.02.17"]
[Round "1.12"]
[White "Giffard, Nicolas"]
[Black "Chaloupka, Frantisek"]
[Result "1-0"]
[Annotator "ChessBase"]
[ECO "D34"]
[WhiteElo "2154"]
[BlackElo "1961"]
[PlyCount "65"]
[EventDate "2025.02.17"]
[EventType "team-tourn"]
[EventCountry "CZE"]
[SourceTitle "playchess.com"]
[Source "ChessBase"]
[SourceQuality "1"]
[TimeControl "40/5400+30:1800+30"]

1. Nf3 {[%emt 0:00:06]} Nf6 {[%emt 0:00:30]} 2. c4 {[%emt 0:00:16]} c5 {[%emt 0:00:27]} 3. g3 {[%emt 0:00:48]} e6 {[%emt 0:00:53]} 4. Bg2 {[%emt 0:00:10]} Nc6 {[%emt 0:03:59]} 5. O-O {[%emt 0:00:54]} Be7 {[%emt 0:02:12]} 6. Nc3 {[%emt 0:00:16]} d5 {[%emt 0:00:27]} 7. cxd5 {[%emt 0:00:09]} exd5 {[%emt 0:00:07]} 8. d4 {[%emt 0:00:13]} O-O {[%emt 0:02:55]} 9. b3 {[%emt 0:02:27]} Be6 {[%emt 0:07:29]} 10. Bb2 {[%emt 0:01:51]} Rc8 {[%emt 0:05:54]} 11. dxc5 {[%emt 0:02:52]} Bxc5 {[%emt 0:01:44]} 12. Ng5 {[%emt 0:04:48]} a6 {[%emt 0:03:24]} 13. Nxe6 {[%emt 0:01:49]} fxe6 {[%emt 0:00:36]} 14. e3 {[%emt 0:00:17]} Qe7 {[%emt 0:04:59]} 15. a3 {[%emt 0:06:34]} Rfd8 {[%emt 0:03:34]} 16. b4 {[%emt 0:01:02]} Ba7 {[%emt 0:01:52]} 17. Ne2 {[%emt 0:01:07]} e5 {[%emt 0:10:38]} 18. Qb3 {[%emt 0:01:21]} Kh8 {[%emt 0:05:36]} 19. Rad1 {[%emt 0:05:33]} Rd6 {[%emt 0:03:54]} 20. Bxd5 {[%emt 0:05:14]} Rcd8 {[%emt 0:26:21]} 21. Bg2 {[%emt 0:04:23]} h5 {[%emt 0:00:35]} 22. Rxd6 {[%emt 0:00:52]} Rxd6 {[%emt 0:00:13]} 23. Rd1 {[%emt 0:00:16]} Rxd1+ {[%emt 0:00:35]} 24. Qxd1 {[%emt 0:00:08]} h4 {[%emt 0:00:32]} 25. Nc3 {[%emt 0:00:51]} hxg3 {[%emt 0:01:05]} 26. hxg3 {[%emt 0:00:07]} Qe6 {[%emt 0:02:49]} 27. Ne4 {[%emt 0:09:41]} Qf5 {[%emt 0:05:59]} 28. Nxf6 {[%emt 0:08:43]} gxf6 {[%emt 0:00:22]} 29. Bxc6 {[%emt 0:00:10]} bxc6 {[%emt 0:00:23]} 30. Qd8+ {[%emt 0:00:15]} Kg7 {[%emt 0:00:31]} 31. Qc7+ {[%emt 0:00:09]} Kg6 {[%emt 0:00:43]} 32. Qxc6 {[%emt 0:00:07]} Qd3 {[%emt 0:02:49]} 33. Bxe5 {[%emt 0:01:19]} 1-0

[Event "FIDE WSTC Open 65 2025"]
[Site "Prague"]
[Date "2025.02.17"]
[Round "1.13"]
[White "Garcia Palermo, Carlos Horacio"]
[Black "Walther, Hans-Wolfgang"]
[Result "1-0"]
[Annotator "ChessBase"]
[ECO "D13"]
[WhiteElo "2412"]
[BlackElo "2034"]
[PlyCount "91"]
[EventDate "2025.02.17"]
[EventType "team-tourn"]
[EventCountry "CZE"]
[SourceTitle "playchess.com"]
[Source "ChessBase"]
[SourceQuality "1"]
[TimeControl "40/5400+30:1800+30"]

1. d4 {[%emt 0:00:08]} d5 {[%emt 0:00:30]} 2. Nf3 {[%emt 0:00:47]} e6 {[%emt 0:00:33]} 3. c4 {[%emt 0:00:32]} c6 {[%emt 0:01:05]} 4. cxd5 {[%emt 0:01:13]} cxd5 {[%emt 0:00:55]} 5. Nc3 {[%emt 0:00:54]} Nf6 {[%emt 0:03:04]} 6. Bf4 {[%emt 0:00:22]} a6 {[%emt 0:01:08]} 7. e3 {[%emt 0:00:21]} Nc6 {[%emt 0:01:41]} 8. Bd3 {[%emt 0:00:29]} Bd6 {[%emt 0:03:45]} 9. O-O {[%emt 0:01:14]} Bxf4 {[%emt 0:02:41]} 10. exf4 {[%emt 0:00:06]} O-O {[%emt 0:00:35]} 11. Rc1 {[%emt 0:00:30]} Qd6 {[%emt 0:09:15]} 12. Qd2 {[%emt 0:12:25]} Bd7 {[%emt 0:04:46]} 13. Bb1 {[%emt 0:01:13]} b5 {[%emt 0:02:07]} 14. Ne5 {[%emt 0:10:45]} Rac8 {[%emt 0:19:17]} 15. Ne2 {[%emt 0:01:39]} b4 {[%emt 0:16:47]} 16. f3 {[%emt 0:07:37]} Na7 {[%emt 0:08:24]} 17. f5 {[%emt 0:11:32]} Bb5 {[%emt 0:04:20]} 18. fxe6 {[%emt 0:00:19]} fxe6 {[%emt 0:00:48]} 19. Bd3 {[%emt 0:01:37]} Nd7 {[%emt 0:07:28]} 20. Nxd7 {[%emt 0:06:23]} Bxd7 {[%emt 0:04:34]} 21. Qe3 {[%emt 0:06:31]} Bb5 {[%emt 0:03:44]} 22. Bxb5 {[%emt 0:04:35]} Nxb5 {[%emt 0:00:13]} 23. h4 {[%emt 0:01:17]} Rc4 {[%emt 0:00:44]} 24. b3 {[%emt 0:02:46]} Rcc8 {[%emt 0:00:27]} 25. Rfe1 {[%emt 0:01:39]} Rce8 {[%emt 0:01:30]} 26. f4 {[%emt 0:06:21]} Rc8 {[%emt 0:00:03]} 27. g3 {[%emt 0:02:03]} Qd7 {[%emt 0:00:38]} 28. Kg2 {[%emt 0:09:00]} Rxc1 {[%emt 0:00:25]} 29. Rxc1 {[%emt 0:03:54]} Rc8 {[%emt 0:00:02]} 30. Rxc8+ {[%emt 0:00:22]} Qxc8 {[%emt 0:00:01]} 31. Ng1 {[%emt 0:00:56]} Qc2+ {[%emt 0:00:31]} 32. Kf3 {[%emt 0:00:58]} Qc3 {[%emt 0:01:15]} 33. Ne2 {[%emt 0:00:31]} Qxe3+ {[%emt 0:00:36]} 34. Kxe3 {[%emt 0:00:09]} Kf7 {[%emt 0:00:39]} 35. h5 {[%emt 0:00:53]} g6 {[%emt 0:00:20]} 36. hxg6+ {[%emt 0:00:54]} hxg6 {[%emt 0:01:27]} 37. g4 {[%emt 0:00:34]} Kf6 {[%emt 0:00:38]} 38. g5+ {[%emt 0:00:40]} Ke7 {[%emt 0:00:30]} 39. Kd3 {[%emt 0:00:29]} Nd6 {[%emt 0:00:27]} 40. Ng1 {[%emt 0:00:19]} Nb5 {[%emt 0:00:52]} 41. Nf3 {[%emt 0:30:25]} Kf7 {[%emt 0:30:25]} 42. Ne5+ {[%emt 0:00:11]} Kg7 {[%emt 0:00:08]} 43. Nc6 {[%emt 0:00:12]} a5 {[%emt 0:00:14]} 44. Nxa5 {[%emt 0:00:19]} Nc3 {[%emt 0:00:02]} 45. a4 {[%emt 0:00:19]} Kf7 {[%emt 0:00:14]} 46. Nc6 {[%emt 0:00:08]} 1-0

[Event "FIDE WSTC Open 65 2025"]
[Site "Prague"]
[Date "2025.02.17"]
[Round "1.14"]
[White "Bindrich, Oswald"]
[Black "Ortega, Lexy"]
[Result "0-1"]
[Annotator "ChessBase"]
[ECO "B75"]
[WhiteElo "2089"]
[BlackElo "2348"]
[PlyCount "46"]
[EventDate "2025.02.17"]
[EventType "team-tourn"]
[EventCountry "CZE"]
[SourceTitle "playchess.com"]
[Source "ChessBase"]
[SourceQuality "1"]
[TimeControl "40/5400+30:1800+30"]

1. e4 {[%emt 0:00:30]} c5 {[%emt 0:00:07]} 2. Nf3 {[%emt 0:00:00]} g6 {[%emt 0:00:04]} 3. d4 {[%emt 0:00:19]} cxd4 {[%emt 0:00:04]} 4. Nxd4 {[%emt 0:00:20]} Nf6 {[%emt 0:01:06]} 5. Nc3 {[%emt 0:00:25]} d6 {[%emt 0:03:25]} 6. Be3 {[%emt 0:01:14]} Nc6 {[%emt 0:00:49]} 7. f3 {[%emt 0:03:15]} Bg7 {[%emt 0:02:00]} 8. Qd2 {[%emt 0:00:53]} Bd7 {[%emt 0:04:23]} 9. O-O-O {[%emt 0:01:10]} a6 {[%emt 0:07:06]} 10. Kb1 {[%emt 0:03:51]} b5 {[%emt 0:00:40]} 11. h4 {[%emt 0:00:24]} h5 {[%emt 0:00:36]} 12. Nd5 {[%emt 0:06:50]} Ne5 {[%emt 0:09:33]} 13. Bg5 {[%emt 0:05:27]} Nxd5 {[%emt 0:16:37]} 14. exd5 {[%emt 0:00:34]} Qb6 {[%emt 0:03:44]} 15. Be2 {[%emt 0:04:13]} Nc4 {[%emt 0:08:54]} 16. Qd3 {[%emt 0:16:44]} Rc8 {[%emt 0:03:00]} 17. Qe4 {[%emt 0:04:52]} O-O {[%emt 0:02:33]} 18. g4 {[%emt 0:03:15]} f5 {[%emt 0:06:19]} 19. gxf5 {[%emt 0:05:36]} Nxb2 {[%emt 0:06:20]} 20. Ne6 {[%emt 0:12:28]} Na4 {[%emt 0:10:14]} 21. Rd3 {[%emt 0:06:54]} gxf5 {[%emt 0:06:28]} 22. Qf4 {[%emt 0:03:15]} Bxe6 {[%emt 0:02:59]} 23. dxe6 {[%emt 0:00:07]} Qc5 {[%emt 0:01:10]} 0-1

[Event "FIDE WSTC Open 65 2025"]
[Site "Prague"]
[Date "2025.02.17"]
[Round "1.15"]
[White "Sibilio, Mario"]
[Black "Fleuch, Hans-Juergen"]
[Result "1-0"]
[Annotator "ChessBase"]
[ECO "B08"]
[WhiteElo "2229"]
[BlackElo "1981"]
[PlyCount "51"]
[EventDate "2025.02.17"]
[EventType "team-tourn"]
[EventCountry "CZE"]
[SourceTitle "playchess.com"]
[Source "ChessBase"]
[SourceQuality "1"]
[TimeControl "40/5400+30:1800+30"]

1. Nf3 {[%emt 0:00:21]} g6 {[%emt 0:00:14]} 2. e4 {[%emt 0:00:42]} d6 {[%emt 0:00:40]} 3. d4 {[%emt 0:04:03]} Nf6 {[%emt 0:01:06]} 4. Nc3 {[%emt 0:00:46]} Bg7 {[%emt 0:00:25]} 5. h3 {[%emt 0:00:32]} c6 {[%emt 0:00:18]} 6. Bg5 {[%emt 0:02:46]} Qa5 {[%emt 0:10:17]} 7. Bd3 {[%emt 0:06:40]} Nbd7 {[%emt 0:00:39]} 8. O-O {[%emt 0:02:56]} O-O {[%emt 0:00:39]} 9. Qd2 {[%emt 0:05:30]} Qc7 {[%emt 0:07:47]} 10. Qf4 {[%emt 0:12:26]} e5 {[%emt 0:12:32]} 11. Qe3 {[%emt 0:10:08]} Re8 {[%emt 0:07:18]} 12. dxe5 {[%emt 0:07:00]} dxe5 {[%emt 0:06:00]} 13. a4 {[%emt 0:03:27]} Nf8 {[%emt 0:03:39]} 14. Bh6 {[%emt 0:00:55]} Ne6 {[%emt 0:04:20]} 15. Bxg7 {[%emt 0:01:04]} Kxg7 {[%emt 0:00:19]} 16. Rfd1 {[%emt 0:00:07]} b6 {[%emt 0:09:15]} 17. Rd2 {[%emt 0:08:03]} Nc5 {[%emt 0:05:37]} 18. b4 {[%emt 0:02:11]} Nxd3 {[%emt 0:00:43]} 19. Rxd3 {[%emt 0:00:32]} Qe7 {[%emt 0:03:39]} 20. b5 {[%emt 0:04:33]} cxb5 {[%emt 0:02:23]} 21. Nxb5 {[%emt 0:00:46]} Ba6 {[%emt 0:03:02]} 22. c4 {[%emt 0:01:09]} Rec8 {[%emt 0:03:44]} 23. Nd6 {[%emt 0:04:05]} Rc7 {[%emt 0:03:05]} 24. Qg5 {[%emt 0:03:23]} Nxe4 {[%emt 0:05:58]} 25. Nf5+ {[%emt 0:01:14]} Kh8 {[%emt 0:00:12]} 26. Qxe7 {[%emt 0:00:22]} 1-0

[Event "FIDE WSTC Open 65 2025"]
[Site "Prague"]
[Date "2025.02.17"]
[Round "1.16"]
[White "Tichatschke, Wolfgang"]
[Black "Ceschia, Ivano"]
[Result "0-1"]
[Annotator "ChessBase"]
[ECO "B32"]
[WhiteElo "1947"]
[BlackElo "2205"]
[PlyCount "124"]
[EventDate "2025.02.17"]
[EventType "team-tourn"]
[EventCountry "CZE"]
[SourceTitle "playchess.com"]
[Source "ChessBase"]
[SourceQuality "1"]
[TimeControl "40/5400+30:1800+30"]

1. e4 {[%emt 0:00:05]} c5 {[%emt 0:00:06]} 2. Nf3 {[%emt 0:00:05]} Nc6 {[%emt 0:00:06]} 3. d4 {[%emt 0:00:04]} cxd4 {[%emt 0:00:05]} 4. Nxd4 {[%emt 0:00:06]} Qb6 {[%emt 0:00:57]} 5. Nxc6 {[%emt 0:02:34]} bxc6 {[%emt 0:00:17]} 6. Bd3 {[%emt 0:00:25]} g6 {[%emt 0:05:36]} 7. O-O {[%emt 0:01:08]} Bg7 {[%emt 0:00:09]} 8. Nc3 {[%emt 0:02:55]} d6 {[%emt 0:01:51]} 9. Kh1 {[%emt 0:05:16]} Nf6 {[%emt 0:00:12]} 10. Qe2 {[%emt 0:01:13]} O-O {[%emt 0:01:24]} 11. Rb1 {[%emt 0:00:50]} Nd7 {[%emt 0:28:32]} 12. Be3 {[%emt 0:03:09]} Qa5 {[%emt 0:01:08]} 13. Qd2 {[%emt 0:00:59]} Ne5 {[%emt 0:15:05]} 14. b4 {[%emt 0:12:00]} Qd8 {[%emt 0:07:35]} 15. Bh6 {[%emt 0:10:01]} Bxh6 {[%emt 0:10:49]} 16. Qxh6 {[%emt 0:00:05]} d5 {[%emt 0:08:55]} 17. Be2 {[%emt 0:19:03]} f5 {[%emt 0:05:25]} 18. exd5 {[%emt 0:02:40]} cxd5 {[%emt 0:00:05]} 19. Qe3 {[%emt 0:13:00]} Nf7 {[%emt 0:00:30]} 20. Nxd5 {[%emt 0:02:44]} e6 {[%emt 0:04:35]} 21. Nc3 {[%emt 0:02:54]} Qc7 {[%emt 0:00:34]} 22. Bf3 {[%emt 0:01:33]} Rb8 {[%emt 0:00:25]} 23. b5 {[%emt 0:05:10]} Ne5 {[%emt 0:00:43]} 24. Rfd1 {[%emt 0:04:10]} f4 {[%emt 0:00:25]} 25. Qd2 {[%emt 0:02:02]} Nxf3 {[%emt 0:00:14]} 26. gxf3 {[%emt 0:00:07]} Bb7 {[%emt 0:00:33]} 27. Ne4 {[%emt 0:00:25]} Rbd8 {[%emt 0:00:55]} 28. Qe2 {[%emt 0:00:13]} Bd5 {[%emt 0:00:18]} 29. a4 {[%emt 0:02:07]} Rc8 {[%emt 0:00:13]} 30. Rd2 {[%emt 0:00:16]} Qe5 {[%emt 0:00:16]} 31. Qd3 {[%emt 0:00:30]} Rc4 {[%emt 0:00:27]} 32. Re1 {[%emt 0:00:35]} Rxa4 {[%emt 0:00:45]} 33. c3 {[%emt 0:00:17]} Rc8 {[%emt 0:00:27]} 34. Qc2 {[%emt 0:00:22]} Bxe4 {[%emt 0:01:09]} 35. Rxe4 {[%emt 0:00:23]} Ra1+ {[%emt 0:02:26]} 36. Rd1 {[%emt 0:01:00]} Qxc3 {[%emt 0:00:24]} 37. Qe2 {[%emt 0:00:52]} Ra2 {[%emt 0:02:07]} 38. Qd3 {[%emt 0:01:58]} Qxd3 {[%emt 0:00:20]} 39. Rxd3 {[%emt 0:00:02]} Rxf2 {[%emt 0:00:10]} 40. Kg1 {[%emt 0:01:10]} Rb2 {[%emt 0:00:09]} 41. Rd1 {[%emt 0:30:23]} Rxb5 {[%emt 0:32:34]} 42. Rxe6 {[%emt 0:02:11]} Rc7 {[%emt 0:01:12]} 43. Kg2 {[%emt 0:02:02]} Kf7 {[%emt 0:00:41]} 44. Red6 {[%emt 0:00:32]} Ke7 {[%emt 0:00:00]} 45. R6d4 {[%emt 0:00:00]} Rf5 {[%emt 0:00:00]} 46. h4 {[%emt 0:00:00]} a5 {[%emt 0:00:00]} 47. Re4+ {[%emt 0:00:00]} Kf7 {[%emt 0:00:00]} 48. Kh3 {[%emt 0:00:00]} Kg7 {[%emt 0:00:00]} 49. Rd8 {[%emt 0:00:00]} Ra7 {[%emt 0:00:00]} 50. Rdd4 {[%emt 0:00:00]} Rff7 {[%emt 0:00:00]} 51. Rc4 {[%emt 0:00:00]} Rac7 {[%emt 0:00:00]} 52. Ra4 {[%emt 0:00:00]} Ra7 {[%emt 0:00:00]} 53. Rac4 {[%emt 0:00:00]} Rae7 {[%emt 0:00:00]} 54. Rxf4 {[%emt 0:00:00]} Rxf4 {[%emt 0:00:00]} 55. Rxf4 {[%emt 0:00:00]} Rf7 {[%emt 0:00:00]} 56. Ra4 {[%emt 0:00:00]} Rxf3+ {[%emt 0:00:00]} 57. Kg4 {[%emt 0:00:00]} Rf5 {[%emt 0:00:00]} 58. Rc4 {[%emt 0:00:00]} Rf7 {[%emt 0:00:00]} 59. Ra4 {[%emt 0:00:00]} Ra7 {[%emt 0:00:00]} 60. Kf4 {[%emt 0:00:00]} Kf6 {[%emt 0:00:00]} 61. Ke4 {[%emt 0:00:00]} h6 {[%emt 0:00:00]} 62. Kf4 {[%emt 0:00:00]} Ke6 {[%emt 0:00:00]} 0-1

[Event "FIDE WSTC Open 65 2025"]
[Site "Prague"]
[Date "2025.02.17"]
[Round "1.17"]
[White "Bhopal, Raj"]
[Black "Jansa, Vlastimil"]
[Result "1-0"]
[Annotator "ChessBase"]
[ECO "B08"]
[WhiteElo "2026"]
[BlackElo "2267"]
[PlyCount "77"]
[EventDate "2025.02.17"]
[EventType "team-tourn"]
[EventCountry "CZE"]
[SourceTitle "playchess.com"]
[Source "ChessBase"]
[SourceQuality "1"]
[TimeControl "40/5400+30:1800+30"]

1. d4 {[%emt 0:00:07]} d6 {[%emt 0:00:21]} 2. e4 {[%emt 0:00:24]} Nf6 {[%emt 0:00:07]} 3. Nc3 {[%emt 0:00:02]} g6 {[%emt 0:00:09]} 4. Nf3 {[%emt 0:00:21]} Bg7 {[%emt 0:00:12]} 5. h3 {[%emt 0:01:29]} O-O {[%emt 0:00:16]} 6. Be3 {[%emt 0:00:16]} b6 {[%emt 0:00:51]} 7. Bd3 {[%emt 0:07:02]} Bb7 {[%emt 0:03:57]} 8. O-O {[%emt 0:00:57]} a6 {[%emt 0:06:03]} 9. Qd2 {[%emt 0:04:36]} c5 {[%emt 0:02:51]} 10. d5 {[%emt 0:06:46]} b5 {[%emt 0:01:07]} 11. a3 {[%emt 0:06:17]} Re8 {[%emt 0:02:06]} 12. Rfe1 {[%emt 0:03:35]} Nbd7 {[%emt 0:01:09]} 13. Bf4 {[%emt 0:05:37]} Nb6 {[%emt 0:09:20]} 14. Bf1 {[%emt 0:04:14]} Nfd7 {[%emt 0:05:31]} 15. h4 {[%emt 0:08:25]} Qc7 {[%emt 0:12:22]} 16. h5 {[%emt 0:02:10]} Rad8 {[%emt 0:02:10]} 17. hxg6 {[%emt 0:02:58]} hxg6 {[%emt 0:00:10]} 18. Bh6 {[%emt 0:05:57]} Bf6 {[%emt 0:10:31]} 19. Bg5 {[%emt 0:02:03]} Ne5 {[%emt 0:02:44]} 20. Nxe5 {[%emt 0:01:19]} Bxe5 {[%emt 0:00:44]} 21. g3 {[%emt 0:03:44]} Bc8 {[%emt 0:02:37]} 22. Bf4 {[%emt 0:01:48]} Bh8 {[%emt 0:01:53]} 23. f3 {[%emt 0:08:03]} Nd7 {[%emt 0:01:39]} 24. Qh2 {[%emt 0:02:28]} Ne5 {[%emt 0:01:15]} 25. Kg2 {[%emt 0:02:03]} f5 {[%emt 0:20:33]} 26. Be2 {[%emt 0:04:06]} e6 {[%emt 0:03:01]} 27. Rh1 {[%emt 0:01:21]} Bg7 {[%emt 0:02:56]} 28. Bg5 {[%emt 0:02:17]} b4 {[%emt 0:01:55]} 29. axb4 {[%emt 0:02:28]} cxb4 {[%emt 0:00:42]} 30. Bxd8 {[%emt 0:01:01]} Rxd8 {[%emt 0:01:03]} 31. Nd1 {[%emt 0:05:32]} Qxc2 {[%emt 0:01:35]} 32. Kf1 {[%emt 0:00:00]} fxe4 {[%emt 0:01:05]} 33. f4 {[%emt 0:02:22]} Nf7 {[%emt 0:01:48]} 34. Qh7+ {[%emt 0:01:14]} Kf8 {[%emt 0:00:23]} 35. Qxg6 {[%emt 0:00:13]} Rd7 {[%emt 0:01:22]} 36. dxe6 {[%emt 0:00:30]} Nh8 {[%emt 0:00:14]} 37. Qf5+ {[%emt 0:01:00]} Ke8 {[%emt 0:00:07]} 38. exd7+ {[%emt 0:01:01]} Bxd7 {[%emt 0:00:01]} 39. Rxh8+ {[%emt 0:00:26]} 1-0